[Event "97th Argentine Championship 2022"]
[Site "Barichole"]
[Date "2022.12.01"]
[Round "1.6"]
[White "Valerga, Diego"]
[Black "Sorin, Ariel"]
[Result "1/2-1/2"]
[ECO "C77"]
[WhiteElo "2438"]
[BlackElo "2363"]
[Annotator "TA"]
[PlyCount "82"]
[EventDate "2022.12.01"]
[EventCountry "ARG"]
[SourceTitle "playchess.com"]
[Source "ChessBase"]
[SourceQuality "1"]
[TimeControl "40/5400+30:1800+30"]

{[%evp 11,82,2,1,0,0,0,5,5,22,10,54,58,77,41,66,68,91,68,97,97,97,94,91,77,78,79,84,77,68,67,77,79,80,81,91,77,94,93,169,152,176,159,188,89,79,-7,63,64,118,128,130,132,196,196,168,70,201,218,215,201,218,220,211,68,68,68,71,70,70,0,0,0,0]} 1. e4 {[%emt 0:00:05]} e5 {[%emt 0:00:21]} 2. Nf3 {[%emt 0:00:08]} Nc6 {[%emt 0:00:24]} 3. Bb5 {[%emt 0:00:11]} a6 {[%emt 0:00:35]} 4. Ba4 {[%emt 0:00:08]} Nf6 {[%emt 0:00:36]} 5. Nc3 {[%emt 0:00:19]} b5 {[%emt 0:03:38]} 6. Bb3 {[%emt 0:00:08]} Be7 {[%emt 0:01:32]} 7. a4 $1 {[%emt 0:01:29][%mdl 4] is recently more successful than 7.d3. C77: Ruy Lopez: 3...a6 4 Ba4 Nf6, unusual lines.} b4 {[%emt 0:06:06]} 8. Nd5 {[%emt 0:00:19]} d6 {[%emt 0:02:19]} 9. d4 {[%emt 0:02:19]} O-O {[%emt 0:19:06]} (9... Nxe4 10. Qd3 f5 11. Be3 $16 (11. Qc4 Na5 $14)) 10. O-O {[%emt 0:08:10]} Rb8 {[%emt 0:16:52]} (10... Nxe4 11. Qd3 Nf6 12. Ng5 $16) (10... Bg4 {simplifies} 11. Nxe5 dxe5 12. Nxf6+ Bxf6 13. Qxg4 Nxd4 14. Qd1 Nxb3 15. cxb3 Qd4) 11. dxe5 {[%emt 0:06:05]} dxe5 {[%emt 0:04:07]} 12. Be3 {[%emt 0:04:17]} Bg4 {[%emt 0:09:32] [#]} (12... Nxe4 13. Nxe7+ Nxe7 14. Qxd8 (14. Nxe5 Qd6 $16) 14... Rxd8 15. Nxe5 $16) 13. h3 $146 {[%emt 0:14:09]} ({Predecessor:} 13. a5 Nxd5 14. Bxd5 Nd4 15. Bxd4 exd4 16. h3 Bxf3 17. Qxf3 c5 18. Bc4 Bd6 19. Qf5 {1-0 (41) Balogh,C (2629)-Klekowski,M (2499) Slovakia 2019}) 13... Bh5 {[%emt 0:03:55]} 14. Qe2 {[%emt 0:03:10]} Nd4 {[%emt 0:14:04]} 15. Bxd4 {[%emt 0:00:47]} (15. Qxa6 $6 Nxd5 16. Bxd4 exd4 17. Bxd5 Bxf3 18. gxf3 Rb6 $11) 15... Bxf3 {[%emt 0:00:27]} 16. Qxf3 {[%emt 0:02:39]} (16. gxf3 exd4 17. Nxf6+ (17. Qxa6 Nxd5 18. Bxd5 Rb6 $11) 17... Bxf6 $14) 16... exd4 {[%emt 0:00:24]} 17. Nxf6+ {[%emt 0:01:22]} Bxf6 {[%emt 0:00:06]} 18. Qd3 {[%emt 0:00:06]} a5 {[%emt 0:01:47]} 19. f4 {[%emt 0:00:54]} Be7 {[%emt 0:01:33]} 20. e5 {[%emt 0:03:48]} Kh8 {[%emt 0:00:05]} 21. Rae1 {[%emt 0:04:03]} c5 {[%emt 0:00:36]} 22. Bc4 {[%emt 0:08:05]} Rb6 {[%emt 0:01:25]} 23. Re2 {[%emt 0:02:40]} Rh6 {[%emt 0:03:34]} 24. g4 {[%emt 0:03:06]} Rb6 {[%emt 0:01:14]} (24... f6 $16 {keeps fighting.}) 25. b3 {[%emt 0:01:31]} f6 {[%emt 0:03:09]} 26. Rfe1 $1 {[%emt 0:06:35] aiming for exf6.} g6 {[%emt 0:02:34]} 27. f5 {[%emt 0:13:32]} (27. exf6 $1 $18 {is more deadly.} Bxf6 28. g5) 27... fxe5 $16 {[%emt 0:01:31]} 28. fxg6 {[%emt 0:09:23]} ({White should play} 28. Rxe5 $16 Bd6 29. Rd5) 28... Rxg6 {[%emt 0:00:13]} ({Better is} 28... Bh4 $11 29. Rf1 Rbf6 30. Rxf6 Qxf6) 29. Rxe5 $14 {[%emt 0:00:59][%cal Be2e5,Be5h5,Bh5f5][%mdl 32]} Bd6 {[%emt 0:01:04]} (29... Bh4 $14 30. Rf1 Rgf6) 30. Rh5 $1 $36 {[%emt 0:02:01][%mdl 2048] White has strong initiative. Active counter play!} Qf6 {[%emt 0:00:35] ( -> ...Qf2+)} 31. Rf1 {[%emt 0:00:38] Against Qf2+. The board is on fire.} Qg7 {[%emt 0:00:07]} (31... Qxf1+ $16 {might work better.} 32. Qxf1 Rxf1+ 33. Bxf1 Kg7) 32. Rxf8+ $18 {[%emt 0:00:32]} Bxf8 {[%emt 0:00:04]} 33. Qe4 {[%emt 0:01:06]} (33. Qf3 $1 $18 {Strongly threatening Rf5.} Rf6 34. Qd5) 33... Rh6 {[%emt 0:01:14]} (33... Rg5 $14 34. Rxg5 Qxg5) 34. Rf5 $1 {[%emt 0:01:06] Qf3 would kill now.} Rf6 {[%emt 0:00:12]} (34... Rxh3 35. Rxf8+ $1 {[%mdl 512]} Qxf8 36. Qe5+ Qg7 37. Qe8+) 35. Re5 {[%emt 0:01:08]} Bd6 {[%emt 0:00:47]} 36. Re8+ {[%emt 0:00:11]} Rf8 {[%emt 0:00:15] [#]} 37. Bd3 {[%emt 0:00:42]} ({White must play} 37. Re6 $1 $18 {[%cal Re6d6]} Qc7 38. Kg2) 37... Rxe8 $14 {[%emt 0:00:25]} 38. Qxe8+ {[%emt 0:00:06]} Bf8 {[%emt 0:00:58]} 39. Qd8 {[%emt 0:01:06]} Qh6 {[%emt 0:00:16]} 40. Kg2 {[%emt 0:00:00]} ({Much worse is} 40. Qxa5 Qe3+ 41. Kg2 Qd2+ 42. Kh1 Qd1+ 43. Kg2 Qd2+ 44. Kh1 Qd1+ 45. Kg2 Qd2+ $11) (40. g5 $14 Qd6 41. Qxd6 (41. Qxa5 c4 $11) (41. Qf6+ Qxf6 42. gxf6 Bd6 $16) 41... Bxd6 42. Kf2) 40... Qd2+ $11 {[%emt 0:00:00]} 41. Kf3 {[%emt 0:02:42][%cal Rd8f8]} Qe3+ {[%emt 0:05:24] Weighted Error Value: White=0.18 (very precise) /Black=0.21 (precise)} 1/2-1/2

[Event "97th Argentine Championship 2022"]
[Site "Barichole"]
[Date "2022.12.02"]
[Round "2.1"]
[White "Mareco, Sandro"]
[Black "Peralta, Fernando"]
[Result "1/2-1/2"]
[ECO "C11"]
[WhiteElo "2619"]
[BlackElo "2587"]
[Annotator "TA"]
[PlyCount "66"]
[EventDate "2022.12.01"]
[EventCountry "ARG"]
[SourceTitle "playchess.com"]
[Source "ChessBase"]
[SourceQuality "1"]
[TimeControl "40/5400+30:1800+30"]

{[%evp 17,66,0,0,0,0,0,0,0,0,0,0,0,17,14,14,14,56,39,40,33,48,44,60,39,25,30,58,19,19,19,22,39,31,23,39,34,29,20,20,20,37,19,20,20,20,0,0,0,0,0,0]} 1. e4 {[%emt 0:00:03]} e6 {[%emt 0:00:32]} 2. d4 {[%emt 0:00:05]} d5 {[%emt 0:00:04]} 3. Nc3 {[%emt 0:00:05]} Nf6 {[%emt 0:00:11]} 4. e5 {[%emt 0:00:04]} Nfd7 {[%emt 0:00:05]} 5. f4 {[%emt 0:00:03]} c5 {[%emt 0:00:07]} 6. Nf3 {[%emt 0:00:04]} Nc6 {[%emt 0:00:06]} 7. Be3 {[%emt 0:00:15]} cxd4 {[%emt 0:01:05]} 8. Nxd4 {[%emt 0:00:04]} Qb6 {[%emt 0:00:07]} 9. a3 {[%emt 0:01:07]} Bc5 {[%emt 0:02:02][%cal Rc6d4]} (9... Qxb2 $2 10. Na4 $18) 10. Ncb5 $1 {[%emt 0:00:15][%mdl 4] is more profitable than 10.Na4 at the moment. C11: French: Classical System: 4 e5 and 4 Bg5 dxe4.} (10. Na4 $5 Qa5+ $8 11. Nc3 Nxd4 12. Bxd4 $11) 10... a6 {[%emt 0:03:27] Inhibits b4.} 11. b4 {[%emt 0:00:59]} axb5 {[%emt 0:00:15]} 12. bxc5 {[%emt 0:00:04]} Qxc5 {[%emt 0:01:14] ...Ra4 is the strong threat.} ({Don't take} 12... Nxc5 13. Nb3 d4 14. Nxd4 $14 (14. Bxd4 Nxd4 15. Qxd4 Nd7 $14)) 13. Qd3 {[%emt 0:00:05][%cal Od4e6] [#] Black must now prevent Nxe6!} Nxd4 {[%emt 0:00:24]} 14. Bxd4 {[%emt 0:00:29] [#]} Qe7 $146 {[%emt 0:00:15]} ({Predecessor:} 14... Qc4 15. Qd2 Qc6 16. Rb1 Rxa3 17. Bxb5 Qc7 18. O-O O-O 19. Qb4 Ra2 20. Ba4 Qc4 21. Qxc4 {½-½ (24) Laketic,G (2346)-Levi,N (2214) Novi Sad 2019}) 15. Qc3 {[%emt 0:19:30] Against b4} O-O {[%emt 0:05:53]} 16. Qb4 $36 {[%emt 0:14:02][%mdl 2048] Prevents b6. White has the initiative.} Qh4+ {[%emt 0:05:43]} (16... Qxb4+ {simplifies} 17. axb4 Rxa1+ 18. Bxa1 Nb6) 17. g3 {[%emt 0:21:26]} Qd8 {[%emt 0:03:00]} 18. Bxb5 {[%emt 0:00:06] This pair of bishops is nice.} ({Don't play} 18. Qxb5 Qc7 $11) 18... b6 $1 {[%emt 0:00:32]} 19. Qd6 {[%emt 0:03:26]} Nc5 {[%emt 0:05:20]} 20. Qxd8 {[%emt 0:00:11]} Rxd8 {[%emt 0:00:05]} 21. Kd2 {[%emt 0:00:19]} Ba6 {[%emt 0:04:42]} 22. Rhb1 {[%emt 0:03:36]} Rdc8 {[%emt 0:02:35] Inhibits Bc6.} 23. a4 {[%emt 0:02:44]} h5 {[%emt 0:04:12]} 24. Ke3 {[%emt 0:07:31]} Bxb5 {[%emt 0:19:13]} 25. axb5 {[%emt 0:02:45]} Nd7 {[%emt 0:00:06]} 26. Kd2 {[%emt 0:05:38]} Kf8 {[%emt 0:01:52]} 27. Rxa8 {[%emt 0:05:47]} Rxa8 {[%emt 0:00:29]} 28. Ra1 {[%emt 0:00:03]} Rxa1 {[%emt 0:01:07]} 29. Bxa1 $11 {[%emt 0:00:06] KB-KN} f5 {[%emt 0:05:05] The position is equal.} 30. Bd4 {[%emt 0:04:28]} Ke7 {[%emt 0:01:31]} 31. c4 {[%emt 0:02:44]} dxc4 {[%emt 0:00:28]} 32. Kc3 {[%emt 0:00:03]} Kd8 {[%emt 0:00:28]} 33. Kxc4 {[%emt 0:00:05]} Kc7 {[%emt 0:00:20] Weighted Error Value: White=0.05 (flawless) /Black=0.06 (flawless)} 1/2-1/2

[Event "97th Argentine Championship 2022"]
[Site "Barichole"]
[Date "2022.12.02"]
[Round "2.2"]
[White "Flores, Diego"]
[Black "Krysa, Leandro"]
[Result "1-0"]
[ECO "A22"]
[WhiteElo "2547"]
[BlackElo "2524"]
[Annotator "TA"]
[PlyCount "105"]
[EventDate "2022.12.01"]
[EventCountry "ARG"]
[SourceTitle "playchess.com"]
[Source "ChessBase"]
[SourceQuality "1"]
[TimeControl "40/5400+30:1800+30"]

{[%evp 9,105,-6,-11,-4,0,0,2,0,2,-5,8,-2,10,0,10,13,19,12,15,14,11,14,29,23,29,30,35,11,16,15,20,0,33,16,31,29,31,19,12,0,18,2,13,0,1,0,0,0,0,0,65,65,62,62,59,59,61,67,60,65,68,68,61,62,75,58,155,137,135,135,227,227,289,254,491,437,475,472,464,358,343,257,610,537,585,568,8000,5096,29975,29976,29976,29977,29976,29978,29977,29978,29978,29972]} 1. c4 {[%emt 0:01:40]} e5 {[%emt 0:00:31]} 2. e3 {[%emt 0:01:11]} Nf6 {[%emt 0:00:57]} 3. Nc3 {[%emt 0:01:19]} Bb4 {[%emt 0:00:44]} 4. Nd5 {[%emt 0:08:55]} Nxd5 {[%emt 0:02:14]} 5. cxd5 {[%emt 0:00:14]} O-O {[%emt 0:08:04]} 6. a3 {[%emt 0:02:37] A22: English Opening: 1...e5 2 Nc3 Nf6.} Be7 {[%emt 0:01:50]} 7. Bc4 {[%emt 0:01:20]} d6 {[%emt 0:07:06]} 8. Ne2 {[%emt 0:01:01] The position is equal.} Nd7 {[%emt 0:02:07]} 9. Nc3 {[%emt 0:01:03]} c6 {[%emt 0:01:41]} 10. O-O {[%emt 0:03:57] [#]} Nb6 $146 {[%emt 0:01:58]} ({Predecessor:} 10... a6 11. Ba2 c5 12. d4 f5 13. dxe5 Nxe5 14. f4 Nf7 15. Bb1 Bf6 16. Kh1 Re8 {0-1 (36) Hocevar,N (2028)-Wegerer,F (2142) Graz 2011}) 11. Ba2 {[%emt 0:02:22]} cxd5 {[%emt 0:03:50]} 12. Nxd5 {[%emt 0:00:38]} Be6 {[%emt 0:03:33]} 13. Nxb6 {[%emt 0:02:15]} Qxb6 {[%emt 0:01:31]} 14. Bxe6 {[%emt 0:00:11]} fxe6 {[%emt 0:00:05]} 15. b4 {[%emt 0:00:05]} a5 {[%emt 0:10:09]} 16. Bb2 {[%emt 0:04:10]} Bf6 {[%emt 0:08:18]} 17. Bc3 {[%emt 0:04:24]} a4 {[%emt 0:06:14]} 18. Qg4 {[%emt 0:09:02]} d5 {[%emt 0:03:18]} 19. Rac1 {[%emt 0:14:01]} Qd6 {[%emt 0:16:06]} 20. Qg3 {[%emt 0:04:25]} Rad8 {[%emt 0:03:18]} 21. Bb2 {[%emt 0:02:38]} e4 {[%emt 0:04:22]} 22. Qxd6 {[%emt 0:05:41]} (22. Bxf6 {simplifies} Rxf6 23. Qxd6 Rxd6 24. b5) 22... Rxd6 {[%emt 0:00:04]} 23. Bxf6 {[%emt 0:00:32]} gxf6 $14 {[%emt 0:00:36][%mdl 4096] Endgame KRR-KRR} 24. f3 {[%emt 0:10:08]} f5 {[%emt 0:07:58]} 25. Rc7 {[%emt 0:06:32]} Rf7 {[%emt 0:00:59]} 26. Rfc1 {[%emt 0:01:16]} d4 {[%emt 0:01:31]} 27. fxe4 {[%emt 0:03:33]} dxe3 {[%emt 0:01:27]} 28. dxe3 {[%emt 0:00:35]} fxe4 {[%emt 0:01:22]} 29. R7c4 {[%emt 0:02:17]} Rfd7 {[%emt 0:02:31]} (29... Rd3 $11) 30. Rxe4 {[%emt 0:02:24]} Rd3 {[%emt 0:00:26]} 31. Ra1 {[%emt 0:00:13]} ({Don't play} 31. Rxe6 Rxa3 32. h4 Rb3 $15) 31... Kf7 {[%emt 0:00:33]} 32. b5 {[%emt 0:00:40]} R7d5 {[%emt 0:00:35]} 33. Rxa4 {[%emt 0:01:22]} Rxb5 {[%emt 0:00:05]} 34. Rf1+ {[%emt 0:01:33]} Ke7 {[%emt 0:00:21][%cal Oh7h5]} 35. Rh4 {[%emt 0:00:13]} h5 {[%emt 0:00:15]} 36. a4 {[%emt 0:00:12]} Rg5 {[%emt 0:01:09]} 37. Rb4 {[%emt 0:00:20]} Rd2 {[%emt 0:00:33] White leaves nothing to chance now.} ({Better is} 37... Rxe3 $14 38. Rxb7+ Kd6) 38. g3 {[%emt 0:00:31]} b6 {[%emt 0:00:35]} 39. Rxb6 {[%emt 0:02:15]} h4 {[%emt 0:00:13] [#]} (39... Ra2 $16 40. Rb7+ Kd6) 40. Rb7+ $1 $18 {[%emt 0:00:00]} Kd6 {[%emt 0:00:00]} 41. Rff7 {[%emt 0:06:46] And now Rbd7+ would win.} Rgd5 $2 {[%emt 0:10:28]} (41... Rc2 42. Rb6+ Kd5 43. Rb5+ Rc5) 42. Rbd7+ {[%emt 0:01:45]} Ke5 {[%emt 0:02:46]} 43. Rxd5+ {[%emt 0:00:09]} exd5 {[%emt 0:00:33] KR-KR} 44. Rf2 {[%emt 0:05:51]} Rd1+ {[%emt 0:07:36]} 45. Rf1 {[%emt 0:00:18]} Rd2 {[%emt 0:01:52]} (45... Rd3 46. gxh4 Ra3) 46. Ra1 {[%emt 0:06:43]} hxg3 {[%emt 0:05:22]} 47. hxg3 {[%emt 0:00:08] Threatens to win with a5.} Ke4 {[%emt 0:00:41]} 48. a5 {[%emt 0:00:30][%cal Ba4a5,Ba5a6,Ba6a7][%mdl 32] a6 would kill now.} Kf3 {[%emt 0:03:08]} 49. a6 {[%emt 0:00:19] White mates.} Rg2+ {[%emt 0:01:27]} 50. Kh1 {[%emt 0:00:09]} Rxg3 {[%emt 0:00:45]} 51. a7 {[%emt 0:00:30]} Rh3+ {[%emt 0:01:02]} 52. Kg1 {[%emt 0:00:06]} Rg3+ {[%emt 0:00:13] [#]} 53. Kh2 $1 {[%emt 0:00:10] Weighted Error Value: White=0.10 (very precise) /Black=0.46} 1-0

[Event "97th Argentine Championship 2022"]
[Site "Barichole"]
[Date "2022.12.02"]
[Round "2.3"]
[White "Acosta, Pablo Ismael"]
[Black "Pichot, Alan"]
[Result "1/2-1/2"]
[ECO "D38"]
[WhiteElo "2461"]
[BlackElo "2637"]
[Annotator "TA"]
[PlyCount "85"]
[EventDate "2022.12.01"]
[EventCountry "ARG"]
[SourceTitle "playchess.com"]
[Source "ChessBase"]
[SourceQuality "1"]
[TimeControl "40/5400+30:1800+30"]

{[%evp 13,85,9,16,16,8,22,7,6,9,7,27,21,47,45,44,29,96,89,135,112,114,45,55,28,20,0,0,0,0,-23,0,-49,26,11,47,35,33,52,63,55,29,35,119,134,150,93,103,59,77,0,91,35,77,81,69,48,107,20,8,0,0,0,0,0,0,0,0,0,0,0,0,0,0,0]} 1. d4 {[%emt 0:00:09]} Nf6 {[%emt 0:01:38]} 2. c4 {[%emt 0:00:17]} e6 {[%emt 0:00:07]} 3. Nf3 {[%emt 0:00:07]} d5 {[%emt 0:00:08]} 4. Nc3 {[%emt 0:00:15]} Bb4 {[%emt 0:00:15]} 5. Qa4+ {[%emt 0:00:30]} Nc6 {[%emt 0:00:07]} 6. a3 {[%emt 0:00:45]} Bxc3+ {[%emt 0:00:06]} 7. bxc3 {[%emt 0:00:07]} Bd7 {[%emt 0:04:05][%cal Oc6d4]} 8. cxd5 {[%emt 0:02:58] D38: Queen's Gambit Declined: Ragozin Defence (4 Nf3 Bb4).} exd5 {[%emt 0:00:18]} 9. Bg5 {[%emt 0:02:01]} h6 {[%emt 0:11:23]} 10. Bh4 {[%emt 0:02:32]} O-O {[%emt 0:08:32]} 11. e3 {[%emt 0:06:53]} Re8 {[%emt 0:02:23]} 12. Qc2 {[%emt 0:13:14] [#]} Na5 $146 {[%emt 0:02:15][%cal Oc7c5]} ({Predecessor:} 12... g5 13. Bg3 Ne4 14. Nd2 Bf5 15. Nxe4 Bxe4 16. Qd1 Qd7 17. h4 g4 18. h5 Kh7 {1-0 (40) Le,Q (2709)-Navara,D (2700) chess24.com INT 2022}) 13. Bd3 {[%emt 0:01:32] Against c5} c5 {[%emt 0:02:37]} 14. O-O {[%emt 0:01:28]} Rc8 {[%emt 0:04:50]} (14... g5 $11 15. Bg3 c4) 15. Ne5 $1 $16 {[%emt 0:12:06]} Be6 {[%emt 0:01:43]} (15... Rc7 $142) 16. f4 {[%emt 0:03:10] White has more active pieces.} Qd6 {[%emt 0:05:18]} 17. f5 {[%emt 0:10:21] Inhibits c4.} (17. Qe2 $16) 17... Bd7 $14 {[%emt 0:00:26]} 18. Qe2 {[%emt 0:02:14] Hoping for Nxd7.} (18. Bxf6 {simplifies} gxf6 19. Nxd7 Qxd7 20. Rf3) 18... Rxe5 {[%emt 0:10:44]} 19. Bg3 {[%emt 0:05:15][%mdl 64] Pin} (19. Bxf6 {is interesting.} Qxf6 20. dxe5 Qxe5 21. f6) 19... Nc6 {[%emt 0:00:29][%cal Oc5d4]} 20. dxe5 {[%emt 0:03:44]} ({Don't play} 20. Bxe5 Nxe5 21. dxe5 Qxe5 $17) 20... Nxe5 {[%emt 0:00:23]} 21. c4 {[%emt 0:03:19]} Bc6 {[%emt 0:07:22]} 22. Rad1 {[%emt 0:02:05]} (22. cxd5 $11 Qxd5 23. Bc2) 22... dxc4 {[%emt 0:08:48]} (22... Qe7 $1 $15) 23. Bxc4 $11 {[%emt 0:00:44]} Qe7 {[%emt 0:02:47] [#]} 24. Be6 $1 $36 {[%emt 0:05:09][%mdl 2048] Inhibits a6. Black is under pressure. A strong pair of Bishops.} Ned7 {[%emt 0:00:12]} (24... fxe6 25. Bxe5) 25. Bxd7 {[%emt 0:05:27]} ({Reject} 25. Bd6 Qe8 26. Bxd7 Bxd7 $11) 25... Nxd7 {[%emt 0:00:54]} 26. e4 $1 {[%emt 0:02:56]} Re8 {[%emt 0:04:15] Against e5} 27. Rfe1 {[%emt 0:06:44] Black must now prevent e5.} Qg5 {[%emt 0:08:27]} (27... Ne5 $14) 28. Qf2 $1 $16 {[%emt 0:00:58]} Qh5 {[%emt 0:08:54] [#]} 29. Qf3 {[%emt 0:01:58]} (29. e5 $142 $1) 29... Qg5 {[%emt 0:00:15]} 30. Qf4 {[%emt 0:02:35]} Qh5 {[%emt 0:00:57][%cal Oe8e4]} 31. Qf3 {[%emt 0:03:23]} Qg5 {[%emt 0:00:13]} 32. Bf4 {[%emt 0:00:18] Inhibits Ne5.} ({Better is} 32. h4 $16 Qe7 33. Qc3) 32... Qf6 {[%emt 0:00:24]} 33. Rd6 {[%emt 0:00:31]} Ne5 {[%emt 0:00:10][%mdl 64]} 34. Qd1 {[%emt 0:00:50]} Qe7 {[%emt 0:01:31] [#]} (34... Qh4 $1 $14 35. Bg3 Qg5) 35. Bxe5 {[%emt 0:00:42]} ({White should play} 35. f6 $1 $16 {[%cal Rf6e7]} gxf6 36. Bxh6) 35... Qxe5 $11 {[%emt 0:00:01] The position is equal.} 36. Rd8 {[%emt 0:00:11]} (36. Qd3 {keeps more tension.} c4 37. Qd4 c3 38. Qxe5 Rxe5 39. Rd4) 36... Rxd8 $1 {[%emt 0:00:54]} 37. Qxd8+ {[%emt 0:00:05][%mdl 4096] Endgame KQR-KQB} Kh7 {[%emt 0:00:04]} 38. Qd3 {[%emt 0:00:42]} b5 {[%emt 0:00:44]} 39. Qg3 {[%emt 0:00:29]} Qd4+ {[%emt 0:04:04]} 40. Qe3 {[%emt 0:00:00]} Qe5 {[%emt 0:00:00]} 41. Qg3 {[%emt 0:04:36]} Qd4+ {[%emt 0:02:22]} 42. Qf2 {[%emt 0:01:37] Threatens to win with Qxd4.} Qe5 {[%emt 0:00:41]} 43. Qg3 {[%emt 0:27:03] Weighted Error Value: White=0.18 (very precise) /Black=0.18 (very precise)} 1/2-1/2

[Event "97th Argentine Championship 2022"]
[Site "Barichole"]
[Date "2022.12.02"]
[Round "2.4"]
[White "Perez Ponsa, Federico"]
[Black "Valerga, Diego"]
[Result "1/2-1/2"]
[ECO "B45"]
[WhiteElo "2538"]
[BlackElo "2438"]
[Annotator "TA"]
[PlyCount "62"]
[EventDate "2022.12.01"]
[EventCountry "ARG"]
[SourceTitle "playchess.com"]
[Source "ChessBase"]
[SourceQuality "1"]
[TimeControl "40/5400+30:1800+30"]

{[%evp 15,62,22,33,33,24,42,37,33,29,34,39,37,33,33,33,28,35,32,35,20,27,19,19,19,25,13,19,18,19,20,11,0,27,25,35,22,26,39,33,0,0,0,10,0,16,-28,3,6,41]} 1. e4 {[%emt 0:02:47]} c5 {[%emt 0:00:32]} 2. Nf3 {[%emt 0:00:09]} e6 {[%emt 0:00:07]} 3. d4 {[%emt 0:01:46]} cxd4 {[%emt 0:00:10]} 4. Nxd4 {[%emt 0:00:05]} Nf6 {[%emt 0:00:25]} 5. Nc3 {[%emt 0:00:07]} Nc6 {[%emt 0:00:07]} 6. Nxc6 {[%emt 0:01:42]} bxc6 {[%emt 0:00:10]} 7. e5 {[%emt 0:00:04]} Nd5 {[%emt 0:00:08]} 8. Ne4 {[%emt 0:00:03]} Bb7 {[%emt 0:01:40]} 9. Be2 {[%emt 0:07:54] B45: Sicilian Four Knights.} c5 {[%emt 0:00:36]} 10. O-O {[%emt 0:03:25]} Qc7 {[%emt 0:00:32]} 11. Nd6+ {[%emt 0:04:07] White is slightly better.} Bxd6 {[%emt 0:00:27]} 12. exd6 {[%emt 0:00:02]} Qc6 {[%emt 0:00:08][%cal Od5c3]} (12... Qxd6 $2 13. c4 $18) 13. f3 {[%emt 0:03:24]} c4 {[%emt 0:00:27]} (13... Qxd6 $2 14. c4 $18) 14. Qd4 {[%emt 0:01:02][%csl LRc4,LRg7] Inhibits Qc5.} O-O {[%emt 0:00:09]} 15. Bxc4 {[%emt 0:04:48]} Qxd6 $1 {[%emt 0:00:57] The main line 15...Qxd6 scores better than 15...Rfc8.} 16. b3 {[%emt 0:03:08]} Rfc8 {[%emt 0:02:32]} 17. Bb2 {[%emt 0:03:43][%csl Gb2][%cal Rd4g7] [#]} Qb6 {[%emt 0:00:11]} 18. Rf2 {[%emt 0:05:34][%csl Gb2][%cal Rd4g7]} Qxd4 {[%emt 0:02:22]} 19. Bxd4 {[%emt 0:00:05]} Nb4 {[%emt 0:04:33]} 20. a3 {[%emt 0:04:28] [#]} Nc6 $146 {[%emt 0:15:56]} ({Predecessor:} 20... d5 21. axb4 dxc4 22. Bxa7 cxb3 23. cxb3 Rc3 24. Rb2 f6 25. b5 Kf7 26. b4 e5 27. Rbb1 f5 28. Bc5 Rxa1 29. Rxa1 {1-0 (29) Morcin,T (1999)-Hynes,T (1710) LSS email 2011}) 21. Bb2 {[%emt 0:03:43]} d5 {[%emt 0:01:02]} 22. Bf1 {[%emt 0:05:43]} a5 {[%emt 0:03:56]} 23. g4 {[%emt 0:10:34]} h6 {[%emt 0:22:27]} 24. Re1 {[%emt 0:06:15]} Ba6 {[%emt 0:14:33]} 25. Bg2 {[%emt 0:00:42]} Rc7 {[%emt 0:00:06]} 26. f4 {[%emt 0:04:24]} Rac8 {[%emt 0:02:22]} 27. Rd1 {[%emt 0:00:56]} Nd8 {[%emt 0:07:13][%cal Bc6d8,Bd8b7,Bb7c5][%mdl 32]} 28. Rdd2 {[%emt 0:00:20]} Nb7 {[%emt 0:01:34][%cal Oa5a4]} 29. f5 {[%emt 0:09:08] Inhibits a4.} Nc5 {[%emt 0:02:44]} 30. Be5 {[%emt 0:01:37] [#] Strongly threatening fxe6. A strong pair of Bishops.} Rb7 {[%emt 0:02:59]} 31. fxe6 {[%emt 0:14:15]} fxe6 {[%emt 0:14:55] Weighted Error Value: White=0.05 (flawless) /Black=0.04 (flawless)} 1/2-1/2